[Event "Late-Titled-Tuesday-Blitz-March-26-2024"]
[Site "Chess.com"]
[Date "2024.03.26"]
[Round "6"]
[White "misterlamine"]
[Black "Hirna2005"]
[Result "1/2-1/2"]
[WhiteElo "2471"]
[BlackElo "2311"]
[TimeControl "180+1"]
[EndTime "15:07:20 PDT"]
[Termination "Game drawn by repetition"]

1. d4 {[%clk 0:03:00.9]} 1... g6 {[%clk 0:03:00.5]} 2. Nf3 {[%clk 0:03:01.2]}
2... Bg7 {[%clk 0:03:00.7]} 3. e3 {[%clk 0:03:02.1]} 3... d6 {[%clk 0:03:01.1]}
4. Be2 {[%clk 0:03:02.6]} 4... Nc6 {[%clk 0:03:00.1]} 5. O-O {[%clk 0:03:03.5]}
5... Nf6 {[%clk 0:02:59.6]} 6. b3 {[%clk 0:03:03.8]} 6... O-O {[%clk 0:02:59.4]}
7. Bb2 {[%clk 0:03:04.3]} 7... Bf5 {[%clk 0:02:58.4]} 8. Nbd2 {[%clk 0:03:04.4]}
8... Ne4 {[%clk 0:02:57.8]} 9. Nxe4 {[%clk 0:03:03.8]} 9... Bxe4 {[%clk
0:02:57.7]} 10. Nd2 {[%clk 0:02:56.7]} 10... Bf5 {[%clk 0:02:54]} 11. Bf3 {[%clk
0:02:57.1]} 11... d5 {[%clk 0:02:46.3]} 12. a3 {[%clk 0:02:55.9]} 12... Qd7
{[%clk 0:02:43.9]} 13. c4 {[%clk 0:02:55.2]} 13... Be6 {[%clk 0:02:28.5]} 14.
cxd5 {[%clk 0:02:44]} 14... Bxd5 {[%clk 0:02:28.4]} 15. e4 {[%clk 0:02:44.6]}
15... Be6 {[%clk 0:02:28.6]} 16. d5 {[%clk 0:02:44.8]} 16... Bxb2 {[%clk
0:02:27.5]} 17. dxe6 {[%clk 0:02:39.8]} 17... Qxe6 {[%clk 0:02:25.6]} 18. Ra2
{[%clk 0:02:39.5]} 18... Bg7 {[%clk 0:02:20.4]} 19. Nc4 {[%clk 0:02:27.5]} 19...
Rad8 {[%clk 0:02:18.7]} 20. Qc1 {[%clk 0:02:17.3]} 20... Nd4 {[%clk 0:02:17.4]}
21. Nd2 {[%clk 0:02:02]} 21... c6 {[%clk 0:02:08.5]} 22. Qb1 {[%clk 0:01:41.3]}
22... Bh6 {[%clk 0:01:52]} 23. Bd1 {[%clk 0:01:15.4]} 23... Bxd2 {[%clk
0:01:44.6]} 24. Rxd2 {[%clk 0:01:14.1]} 24... Nf3+ {[%clk 0:01:44.1]} 25. Bxf3
{[%clk 0:01:13.7]} 25... Rxd2 {[%clk 0:01:43.8]} 26. b4 {[%clk 0:01:14]} 26...
Qa2 {[%clk 0:01:41.9]} 27. Qc1 {[%clk 0:01:12.5]} 27... Rfd8 {[%clk 0:01:40.7]}
28. e5 {[%clk 0:01:08.6]} 28... Qb2 {[%clk 0:01:27.6]} 29. Qc5 {[%clk
0:01:07.8]} 29... Qxa3 {[%clk 0:00:55.5]} 30. Qxe7 {[%clk 0:01:04.3]} 30... R2d7
{[%clk 0:00:55.4]} 31. Qc5 {[%clk 0:00:51.2]} 31... a5 {[%clk 0:00:49.4]} 32. e6
{[%clk 0:00:38.4]} 32... fxe6 {[%clk 0:00:44.5]} 33. Bg4 {[%clk 0:00:38.7]}
33... Rd6 {[%clk 0:00:37.9]} 34. Qg5 {[%clk 0:00:32]} 34... Qxb4 {[%clk
0:00:25.4]} 35. Bxe6+ {[%clk 0:00:30.9]} 35... Kg7 {[%clk 0:00:25.8]} 36. Qe7+
{[%clk 0:00:20.4]} 36... Kh6 {[%clk 0:00:24.1]} 37. h4 {[%clk 0:00:20.9]} 37...
Qe4 {[%clk 0:00:20.5]} 38. Qg5+ {[%clk 0:00:16.8]} 38... Kg7 {[%clk 0:00:20.8]}
39. Qe7+ {[%clk 0:00:17.3]} 39... Kh6 {[%clk 0:00:18.9]} 40. Qg5+ {[%clk
0:00:17.2]} 40... Kg7 {[%clk 0:00:19]} 41. Qe7+ {[%clk 0:00:17.2]} 41... Kh6
{[%clk 0:00:19.1]} 1/2-1/2

[Event "Late-Titled-Tuesday-Blitz-March-26-2024"]
[Site "Chess.com"]
[Date "2024.03.26"]
[Round "6"]
[White "NMJeevanK"]
[Black "GMBenjaminBok"]
[Result "0-1"]
[WhiteElo "2618"]
[BlackElo "2971"]
[TimeControl "180+1"]
[EndTime "15:07:23 PDT"]
[Termination "GMBenjaminBok won by resignation"]

1. e4 {[%clk 0:03:00.9]} 1... c5 {[%clk 0:02:59.7]} 2. Nc3 {[%clk 0:03:00.2]}
2... d6 {[%clk 0:02:59.9]} 3. f4 {[%clk 0:02:59.7]} 3... g6 {[%clk 0:03:00.1]}
4. Nf3 {[%clk 0:03:00]} 4... Bg7 {[%clk 0:03:00.7]} 5. Bb5+ {[%clk 0:03:00.5]}
5... Bd7 {[%clk 0:03:01.1]} 6. Bc4 {[%clk 0:02:59.9]} 6... Nc6 {[%clk
0:03:01.6]} 7. O-O {[%clk 0:03:00.4]} 7... e6 {[%clk 0:03:01.7]} 8. d3 {[%clk
0:02:58.4]} 8... Nge7 {[%clk 0:03:01.8]} 9. Qe1 {[%clk 0:02:57.5]} 9... O-O
{[%clk 0:03:00.2]} 10. f5 {[%clk 0:02:54.1]} 10... gxf5 {[%clk 0:02:06.3]} 11.
Bg5 {[%clk 0:02:50.4]} 11... f6 {[%clk 0:01:40]} 12. Bf4 {[%clk 0:02:50.4]}
12... fxe4 {[%clk 0:01:36.4]} 13. Bxd6 {[%clk 0:02:33.8]} 13... exf3 {[%clk
0:01:31.4]} 14. Bxe6+ {[%clk 0:02:16.9]} 14... Bxe6 {[%clk 0:01:30.3]} 15. Qxe6+
{[%clk 0:02:17.8]} 15... Kh8 {[%clk 0:01:28.7]} 16. Rxf3 {[%clk 0:02:10]} 16...
f5 {[%clk 0:01:06.4]} 17. Nd5 {[%clk 0:01:20.8]} 17... Nd4 {[%clk 0:00:42.2]}
18. Qxe7 {[%clk 0:01:20.1]} 18... Nxf3+ {[%clk 0:00:42.2]} 19. gxf3 {[%clk
0:01:19.9]} 19... Re8 {[%clk 0:00:41.2]} 20. Qxd8 {[%clk 0:00:56.2]} 20... Raxd8
{[%clk 0:00:42.1]} 21. Nc7 {[%clk 0:00:56]} 21... Re2 {[%clk 0:00:40.9]} 22. Bf4
{[%clk 0:00:45.6]} 22... Bxb2 {[%clk 0:00:24.6]} 23. Rb1 {[%clk 0:00:42.3]}
23... Bd4+ {[%clk 0:00:24.4]} 24. Kh1 {[%clk 0:00:42.1]} 24... b6 {[%clk
0:00:19.4]} 25. c4 {[%clk 0:00:35.5]} 25... Be5 {[%clk 0:00:16.3]} 26. Bxe5+
{[%clk 0:00:29.6]} 26... Rxe5 {[%clk 0:00:17.2]} 27. Nd5 {[%clk 0:00:29.8]}
27... Re2 {[%clk 0:00:16.4]} 28. Rg1 {[%clk 0:00:24.8]} 28... Rg8 {[%clk
0:00:14.4]} 29. Rd1 {[%clk 0:00:20.3]} 29... Rgg2 {[%clk 0:00:14.1]} 30. Nf4
{[%clk 0:00:20.9]} 30... Rxh2+ {[%clk 0:00:14.5]} 31. Kg1 {[%clk 0:00:21.5]}
31... Rxa2 {[%clk 0:00:15]} 32. d4 {[%clk 0:00:21.6]} 32... Rhd2 {[%clk
0:00:13.9]} 33. Re1 {[%clk 0:00:21.3]} 33... Rxd4 {[%clk 0:00:10.7]} 34. Nh5
{[%clk 0:00:20.4]} 34... Kg8 {[%clk 0:00:09.5]} 35. f4 {[%clk 0:00:14.9]} 35...
Rdd2 {[%clk 0:00:08]} 36. Nf6+ {[%clk 0:00:13.3]} 36... Kf7 {[%clk 0:00:08.1]}
37. Nd5 {[%clk 0:00:13.6]} 37... Rg2+ {[%clk 0:00:07.6]} 38. Kh1 {[%clk
0:00:14]} 38... Rh2+ {[%clk 0:00:08]} 39. Kg1 {[%clk 0:00:14.7]} 39... Rag2+
{[%clk 0:00:08.3]} 40. Kf1 {[%clk 0:00:15.3]} 40... Rh1+ {[%clk 0:00:09.2]} 41.
Kxg2 {[%clk 0:00:16.1]} 41... Rxe1 {[%clk 0:00:10.1]} 0-1

[Event "Late-Titled-Tuesday-Blitz-March-26-2024"]
[Site "Chess.com"]
[Date "2024.03.26"]
[Round "6"]
[White "reevecanada"]
[Black "PapaieDudu"]
[Result "1-0"]
[WhiteElo "2671"]
[BlackElo "2429"]
[TimeControl "180+1"]
[EndTime "15:07:23 PDT"]
[Termination "reevecanada won by checkmate"]

1. Nf3 {[%clk 0:02:54.7]} 1... d5 {[%clk 0:03:00.1]} 2. b3 {[%clk 0:02:53.9]}
2... c5 {[%clk 0:02:59.4]} 3. Bb2 {[%clk 0:02:54.6]} 3... Nc6 {[%clk 0:03:00.3]}
4. d3 {[%clk 0:02:54.8]} 4... e6 {[%clk 0:03:00.9]} 5. Nbd2 {[%clk 0:02:55.3]}
5... Nf6 {[%clk 0:03:01.5]} 6. g3 {[%clk 0:02:53.9]} 6... Bd6 {[%clk 0:03:01.2]}
7. Bg2 {[%clk 0:02:54.4]} 7... O-O {[%clk 0:03:01.9]} 8. e4 {[%clk 0:02:52.9]}
8... d4 {[%clk 0:03:01.8]} 9. O-O {[%clk 0:02:52.4]} 9... e5 {[%clk 0:03:02.1]}
10. h3 {[%clk 0:02:51.4]} 10... Be6 {[%clk 0:03:01.5]} 11. Re1 {[%clk
0:02:51.8]} 11... h6 {[%clk 0:03:00.7]} 12. Kh2 {[%clk 0:02:49.6]} 12... Rc8
{[%clk 0:03:01]} 13. Nc4 {[%clk 0:02:48.9]} 13... Bc7 {[%clk 0:03:00]} 14. Ba3
{[%clk 0:02:48]} 14... b5 {[%clk 0:02:57.9]} 15. Ncd2 {[%clk 0:02:42.6]} 15...
Bd6 {[%clk 0:02:50.3]} 16. Nh4 {[%clk 0:02:34.8]} 16... Qa5 {[%clk 0:02:50.1]}
17. Bb2 {[%clk 0:02:31.1]} 17... Rfd8 {[%clk 0:02:50.1]} 18. Nf5 {[%clk
0:02:30.3]} 18... Bf8 {[%clk 0:02:50.5]} 19. a4 {[%clk 0:02:26]} 19... b4 {[%clk
0:02:34.6]} 20. Qf3 {[%clk 0:02:23.6]} 20... Nh7 {[%clk 0:02:30.9]} 21. Qe2
{[%clk 0:02:13.6]} 21... Qc7 {[%clk 0:02:28.8]} 22. Bc1 {[%clk 0:02:02.9]} 22...
Kh8 {[%clk 0:02:27.5]} 23. Nf3 {[%clk 0:02:02.1]} 23... Ne7 {[%clk 0:02:18.5]}
24. N3h4 {[%clk 0:02:00.2]} 24... Qd7 {[%clk 0:02:12.7]} 25. g4 {[%clk 0:01:50]}
25... Re8 {[%clk 0:02:07.7]} 26. Qf1 {[%clk 0:01:41.6]} 26... g5 {[%clk
0:02:05.9]} 27. Nf3 {[%clk 0:01:41]} 27... Ng6 {[%clk 0:02:06.4]} 28. h4 {[%clk
0:01:39.7]} 28... Nf4 {[%clk 0:02:02.9]} 29. hxg5 {[%clk 0:01:33.3]} 29... hxg5
{[%clk 0:02:00.2]} 30. Nxe5 {[%clk 0:01:32.7]} 30... Qc7 {[%clk 0:02:00.3]} 31.
Bxf4 {[%clk 0:01:30.9]} 31... gxf4 {[%clk 0:02:00.3]} 32. Nf3 {[%clk 0:01:31.4]}
32... Nf6 {[%clk 0:01:55.3]} 33. Bh3 {[%clk 0:01:29.2]} 33... Bxf5 {[%clk
0:01:43.6]} 34. gxf5 {[%clk 0:01:28.2]} 34... Bh6 {[%clk 0:01:40.6]} 35. Qe2
{[%clk 0:01:27.1]} 35... Rg8 {[%clk 0:01:37.8]} 36. Rg1 {[%clk 0:01:26.1]} 36...
Kh7 {[%clk 0:01:36.1]} 37. Kh1 {[%clk 0:01:23.3]} 37... a5 {[%clk 0:01:28.9]}
38. e5 {[%clk 0:01:22.8]} 38... Nd5 {[%clk 0:01:25]} 39. f6 {[%clk 0:01:20.8]}
39... Nc3 {[%clk 0:01:25.1]} 40. Bf5+ {[%clk 0:01:18]} 40... Kh8 {[%clk
0:01:24.7]} 41. Qf1 {[%clk 0:01:17.4]} 41... Rxg1+ {[%clk 0:01:09.6]} 42. Qxg1
{[%clk 0:01:15.3]} 42... Qb7 {[%clk 0:00:36.1]} 43. Qg4 {[%clk 0:01:12.3]} 43...
Rg8 {[%clk 0:00:28.4]} 44. Qh5 {[%clk 0:01:09.5]} 44... Rg1+ {[%clk 0:00:05.4]}
45. Rxg1 {[%clk 0:01:07.9]} 45... Qxf3+ {[%clk 0:00:06]} 46. Qxf3 {[%clk
0:01:07.2]} 46... Ne4 {[%clk 0:00:05.9]} 47. Kh2 {[%clk 0:01:02.6]} 47... c4
{[%clk 0:00:05.4]} 48. Qh5 {[%clk 0:00:56.9]} 48... Ng3 {[%clk 0:00:02]} 49. Qg4
{[%clk 0:00:53.8]} 49... Nxf5 {[%clk 0:00:01.3]} 50. Qg8# {[%clk 0:00:53.1]} 1-0

[Event "Late-Titled-Tuesday-Blitz-March-26-2024"]
[Site "Chess.com"]
[Date "2024.03.26"]
[Round "6"]
[White "Felix-Rose"]
[Black "Siemba"]
[Result "0-1"]
[WhiteElo "2259"]
[BlackElo "2456"]
[TimeControl "180+1"]
[EndTime "15:07:26 PDT"]
[Termination "Siemba won by checkmate"]

1. d4 {[%clk 0:03:00]} 1... Nf6 {[%clk 0:03:00]} 2. Nc3 {[%clk 0:02:59.1]} 2...
d5 {[%clk 0:02:59.9]} 3. Bf4 {[%clk 0:02:58.9]} 3... c6 {[%clk 0:02:54.4]} 4.
Qd3 {[%clk 0:02:58.1]} 4... Nbd7 {[%clk 0:02:53.4]} 5. O-O-O {[%clk 0:02:58]}
5... e6 {[%clk 0:02:51]} 6. f3 {[%clk 0:02:58]} 6... Qa5 {[%clk 0:02:50.3]} 7.
e4 {[%clk 0:02:54.9]} 7... Bb4 {[%clk 0:02:45]} 8. Nge2 {[%clk 0:02:55]} 8...
Nb6 {[%clk 0:02:43.1]} 9. a3 {[%clk 0:02:50.5]} 9... Nc4 {[%clk 0:02:38.2]} 10.
Nb1 {[%clk 0:02:21.3]} 10... Be7 {[%clk 0:02:29.4]} 11. g4 {[%clk 0:02:12.9]}
11... O-O {[%clk 0:02:19.5]} 12. Qc3 {[%clk 0:02:04.8]} 12... Qb6 {[%clk
0:02:09.3]} 13. e5 {[%clk 0:01:55]} 13... Nd7 {[%clk 0:02:04.4]} 14. Ng3 {[%clk
0:01:55.1]} 14... Qa6 {[%clk 0:01:46.7]} 15. Bxc4 {[%clk 0:01:32.3]} 15... dxc4
{[%clk 0:01:46]} 16. Nh5 {[%clk 0:01:02.7]} 16... Nb6 {[%clk 0:01:39.4]} 17. Qd2
{[%clk 0:00:53.7]} 17... Kh8 {[%clk 0:01:23.3]} 18. Nxg7 {[%clk 0:00:47]} 18...
Kxg7 {[%clk 0:01:21.3]} 19. Bh6+ {[%clk 0:00:46.9]} 19... Kh8 {[%clk 0:01:21.5]}
20. Bxf8 {[%clk 0:00:43.6]} 20... Bxf8 {[%clk 0:01:22.4]} 21. Qg5 {[%clk
0:00:42.7]} 21... Nd5 {[%clk 0:01:14]} 22. Qd8 {[%clk 0:00:34.8]} 22... Bd7
{[%clk 0:00:18.9]} 23. Qxa8 {[%clk 0:00:30.6]} 23... Kg7 {[%clk 0:00:19.4]} 24.
h4 {[%clk 0:00:26.7]} 24... c3 {[%clk 0:00:12.1]} 25. Qd8 {[%clk 0:00:18.4]}
25... cxb2+ {[%clk 0:00:09.3]} 26. Kd2 {[%clk 0:00:18.8]} 26... Be7 {[%clk
0:00:04.8]} 27. Qxd7 {[%clk 0:00:18.7]} 27... Qa5+ {[%clk 0:00:03.4]} 28. c3
{[%clk 0:00:16.4]} 28... Qb5 {[%clk 0:00:02.7]} 29. g5 {[%clk 0:00:07.9]} 29...
Nf4 {[%clk 0:00:02.8]} 30. h5 {[%clk 0:00:07.1]} 30... Qe2# {[%clk 0:00:02.9]}
0-1

[Event "Late-Titled-Tuesday-Blitz-March-26-2024"]
[Site "Chess.com"]
[Date "2024.03.26"]
[Round "6"]
[White "noblerone"]
[Black "GothamChess"]
[Result "1-0"]
[WhiteElo "2549"]
[BlackElo "2663"]
[TimeControl "180+1"]
[EndTime "15:07:27 PDT"]
[Termination "noblerone won by checkmate"]

1. d4 {[%clk 0:03:00.9]} 1... f5 {[%clk 0:02:57.7]} 2. Bf4 {[%clk 0:02:59.6]}
2... Nf6 {[%clk 0:02:57.5]} 3. Nf3 {[%clk 0:03:00.3]} 3... e6 {[%clk 0:02:57.4]}
4. e3 {[%clk 0:03:01]} 4... b6 {[%clk 0:02:57.3]} 5. Be2 {[%clk 0:03:01.1]} 5...
Bb7 {[%clk 0:02:57.7]} 6. O-O {[%clk 0:03:01.6]} 6... Bd6 {[%clk 0:02:58.3]} 7.
Bxd6 {[%clk 0:03:00.7]} 7... cxd6 {[%clk 0:02:59.2]} 8. c4 {[%clk 0:03:00]} 8...
d5 {[%clk 0:02:58.2]} 9. Nc3 {[%clk 0:02:58.5]} 9... O-O {[%clk 0:02:47.5]} 10.
Rc1 {[%clk 0:02:57.9]} 10... Qe7 {[%clk 0:02:39.8]} 11. a3 {[%clk 0:02:52.7]}
11... dxc4 {[%clk 0:02:17.8]} 12. Bxc4 {[%clk 0:02:48.9]} 12... d5 {[%clk
0:02:16]} 13. Be2 {[%clk 0:02:39.8]} 13... Nbd7 {[%clk 0:02:00]} 14. Qb3 {[%clk
0:02:18.8]} 14... Rac8 {[%clk 0:01:48]} 15. Bb5 {[%clk 0:01:51.1]} 15... a6
{[%clk 0:01:40.3]} 16. Bxd7 {[%clk 0:01:48]} 16... Nxd7 {[%clk 0:01:40.1]} 17.
Ne2 {[%clk 0:01:36]} 17... b5 {[%clk 0:01:18.4]} 18. a4 {[%clk 0:01:26.1]} 18...
b4 {[%clk 0:00:58.7]} 19. a5 {[%clk 0:01:26.2]} 19... Bc6 {[%clk 0:00:51.7]} 20.
Nf4 {[%clk 0:01:18.7]} 20... Bb5 {[%clk 0:00:51.7]} 21. Nd3 {[%clk 0:01:14.4]}
21... Bc4 {[%clk 0:00:41.1]} 22. Qd1 {[%clk 0:01:03]} 22... Qd6 {[%clk 0:00:19]}
23. Re1 {[%clk 0:00:59.2]} 23... b3 {[%clk 0:00:15.3]} 24. Nde5 {[%clk 0:00:55]}
24... Nxe5 {[%clk 0:00:15.6]} 25. Nxe5 {[%clk 0:00:55]} 25... Qb4 {[%clk
0:00:16.2]} 26. Ra1 {[%clk 0:00:53.6]} 26... Rc7 {[%clk 0:00:13.1]} 27. Qf3
{[%clk 0:00:44.3]} 27... Qd2 {[%clk 0:00:12.4]} 28. Reb1 {[%clk 0:00:38.5]}
28... Rfc8 {[%clk 0:00:12.2]} 29. h4 {[%clk 0:00:38.2]} 29... Bd3 {[%clk
0:00:09.7]} 30. Rd1 {[%clk 0:00:32.8]} 30... Qxb2 {[%clk 0:00:02.2]} 31. Nxd3
{[%clk 0:00:31.9]} 31... Qc2 {[%clk 0:00:02.7]} 32. h5 {[%clk 0:00:25.9]} 32...
b2 {[%clk 0:00:02.6]} 33. Nxb2 {[%clk 0:00:25.5]} 33... Qxb2 {[%clk 0:00:02.9]}
34. h6 {[%clk 0:00:26]} 34... Qb5 {[%clk 0:00:02.7]} 35. Rdb1 {[%clk 0:00:22.7]}
35... Qd3 {[%clk 0:00:03]} 36. Qg3 {[%clk 0:00:21.2]} 36... Kh8 {[%clk
0:00:02.6]} 37. Rb8 {[%clk 0:00:15.5]} 37... Qc4 {[%clk 0:00:01.8]} 38. Rxc8+
{[%clk 0:00:12]} 38... Rxc8 {[%clk 0:00:02.4]} 39. Qxg7# {[%clk 0:00:12.1]} 1-0

[Event "Late-Titled-Tuesday-Blitz-March-26-2024"]
[Site "Chess.com"]
[Date "2024.03.26"]
[Round "6"]
[White "aghasiyevkamal"]
[Black "SuperJesus88"]
[Result "1/2-1/2"]
[WhiteElo "2647"]
[BlackElo "2493"]
[TimeControl "180+1"]
[EndTime "15:07:28 PDT"]
[Termination "Game drawn by agreement"]

1. d4 {[%clk 0:03:00.9]} 1... e6 {[%clk 0:02:55.1]} 2. c4 {[%clk 0:02:58.5]}
2... b6 {[%clk 0:02:55.4]} 3. Nf3 {[%clk 0:02:55.1]} 3... Bb7 {[%clk 0:02:55.6]}
4. Nc3 {[%clk 0:02:55.3]} 4... Bb4 {[%clk 0:02:56]} 5. Bd2 {[%clk 0:02:55.5]}
5... Nf6 {[%clk 0:02:55.4]} 6. e3 {[%clk 0:02:54.9]} 6... O-O {[%clk 0:02:54.2]}
7. Bd3 {[%clk 0:02:54.6]} 7... c5 {[%clk 0:02:54.2]} 8. a3 {[%clk 0:02:47.8]}
8... Bxc3 {[%clk 0:02:53.3]} 9. Bxc3 {[%clk 0:02:48]} 9... cxd4 {[%clk
0:02:51.6]} 10. Nxd4 {[%clk 0:02:47.8]} 10... d5 {[%clk 0:02:47.5]} 11. O-O
{[%clk 0:02:46.5]} 11... Nc6 {[%clk 0:02:38.7]} 12. Nxc6 {[%clk 0:02:45.8]}
12... Bxc6 {[%clk 0:02:39.6]} 13. Qe2 {[%clk 0:02:45.7]} 13... dxc4 {[%clk
0:02:29.9]} 14. Bxc4 {[%clk 0:02:45]} 14... Ne4 {[%clk 0:02:30.3]} 15. Bd4
{[%clk 0:02:40.4]} 15... Qg5 {[%clk 0:02:29.7]} 16. f3 {[%clk 0:02:39.9]} 16...
Nd6 {[%clk 0:02:28.9]} 17. Bd3 {[%clk 0:02:37.3]} 17... Nf5 {[%clk 0:02:28.6]}
18. Bxf5 {[%clk 0:02:20]} 18... Qxf5 {[%clk 0:02:25.9]} 19. Rfc1 {[%clk
0:02:17.2]} 19... Bb5 {[%clk 0:02:19.6]} 20. Qd2 {[%clk 0:02:12.5]} 20... e5
{[%clk 0:02:15.5]} 21. e4 {[%clk 0:02:10.9]} 21... Qd7 {[%clk 0:02:10]} 22. Be3
{[%clk 0:02:09.1]} 22... Qxd2 {[%clk 0:02:10.5]} 23. Bxd2 {[%clk 0:02:09.2]}
23... Rfc8 {[%clk 0:02:10]} 24. Kf2 {[%clk 0:02:06.9]} 24... f6 {[%clk
0:02:09.7]} 25. Be3 {[%clk 0:02:04.7]} 25... Kf7 {[%clk 0:02:08.4]} 26. a4
{[%clk 0:01:59.6]} 26... Rxc1 {[%clk 0:02:02.6]} 27. Rxc1 {[%clk 0:01:52.5]}
27... Bxa4 {[%clk 0:02:02.5]} 28. Rc7+ {[%clk 0:01:52.5]} 28... Kg6 {[%clk
0:02:02.6]} 29. g3 {[%clk 0:01:50.4]} 29... h5 {[%clk 0:02:00.6]} 30. f4 {[%clk
0:01:50]} 30... exf4 {[%clk 0:01:58]} 31. gxf4 {[%clk 0:01:49.8]} 31... Re8
{[%clk 0:01:51.6]} 32. f5+ {[%clk 0:01:22.6]} 32... Kh7 {[%clk 0:01:51.2]} 33.
Kf3 {[%clk 0:01:21.2]} 33... Bb3 {[%clk 0:01:25]} 34. Kf4 {[%clk 0:01:18]} 34...
Ba2 {[%clk 0:01:16.2]} 35. Bd4 {[%clk 0:01:17.2]} 35... Bb1 {[%clk 0:01:14.4]}
36. e5 {[%clk 0:01:17.3]} 36... Kh6 {[%clk 0:01:01.5]} 37. e6 {[%clk 0:00:58.9]}
37... g5+ {[%clk 0:01:00.1]} 38. fxg6 {[%clk 0:00:54.8]} 38... Kxg6 {[%clk
0:01:00]} 39. e7 {[%clk 0:00:48.5]} 39... Kf7 {[%clk 0:00:59.1]} 40. Rxa7 {[%clk
0:00:47.7]} 40... Rxe7 {[%clk 0:00:59.4]} 41. Rxe7+ {[%clk 0:00:45.6]} 41...
Kxe7 {[%clk 0:00:59.6]} 42. Bxb6 {[%clk 0:00:46.1]} 42... Ke6 {[%clk 0:00:58.9]}
43. Bd8 {[%clk 0:00:44.3]} 43... Bd3 {[%clk 0:00:58]} 44. Ke3 {[%clk 0:00:39.9]}
44... Bb5 {[%clk 0:00:56.7]} 45. Kd4 {[%clk 0:00:39.5]} 45... f5 {[%clk
0:00:49.4]} 46. Bc7 {[%clk 0:00:38.3]} 46... Kd7 {[%clk 0:00:48.3]} 47. Bf4
{[%clk 0:00:36.7]} 47... Kc6 {[%clk 0:00:48.1]} 48. Ke5 {[%clk 0:00:35.6]} 48...
Be2 {[%clk 0:00:47.7]} 49. Kxf5 {[%clk 0:00:33.2]} 49... Kb5 {[%clk 0:00:48]}
50. Ke4 {[%clk 0:00:26.2]} 50... Bd1 {[%clk 0:00:48.3]} 51. Kd3 {[%clk
0:00:25.9]} 51... Bg4 {[%clk 0:00:48.2]} 52. Kc3 {[%clk 0:00:25.3]} 52... Bh3
{[%clk 0:00:47.3]} 53. b4 {[%clk 0:00:23.1]} 53... Bg4 {[%clk 0:00:47.7]} 54.
Bd6 {[%clk 0:00:23.4]} 54... h4 {[%clk 0:00:48.1]} 55. Bc5 {[%clk 0:00:23.9]}
55... h3 {[%clk 0:00:48.5]} 56. Kd4 {[%clk 0:00:23.9]} 56... Bc8 {[%clk
0:00:49.4]} 57. Ke3 {[%clk 0:00:24]} 57... Kc6 {[%clk 0:00:49.7]} 1/2-1/2

[Event "Late-Titled-Tuesday-Blitz-March-26-2024"]
[Site "Chess.com"]
[Date "2024.03.26"]
[Round "6"]
[White "dolynachess"]
[Black "stepanosinovsky"]
[Result "1-0"]
[WhiteElo "2516"]
[BlackElo "2376"]
[TimeControl "180+1"]
[EndTime "15:07:29 PDT"]
[Termination "dolynachess won on time"]

1. d4 {[%clk 0:02:56.3]} 1... Nf6 {[%clk 0:02:59.8]} 2. c4 {[%clk 0:02:56.1]}
2... g6 {[%clk 0:03:00.5]} 3. Nc3 {[%clk 0:02:55.4]} 3... Bg7 {[%clk 0:03:01.4]}
4. e4 {[%clk 0:02:54.5]} 4... O-O {[%clk 0:03:02.3]} 5. Nf3 {[%clk 0:02:54.9]}
5... d6 {[%clk 0:03:02]} 6. Be2 {[%clk 0:02:55]} 6... Nbd7 {[%clk 0:03:02]} 7.
Be3 {[%clk 0:02:53.8]} 7... e5 {[%clk 0:03:02.4]} 8. d5 {[%clk 0:02:54.1]} 8...
Nc5 {[%clk 0:02:59.2]} 9. Nd2 {[%clk 0:02:53.1]} 9... a5 {[%clk 0:02:58.7]} 10.
a3 {[%clk 0:02:52.3]} 10... h5 {[%clk 0:02:21.4]} 11. f3 {[%clk 0:02:27.6]}
11... a4 {[%clk 0:01:48.5]} 12. Bxc5 {[%clk 0:02:26.8]} 12... dxc5 {[%clk
0:01:49.4]} 13. Nxa4 {[%clk 0:02:26.5]} 13... h4 {[%clk 0:01:28.3]} 14. Nxc5
{[%clk 0:02:20.1]} 14... Nh5 {[%clk 0:01:28.4]} 15. Nd3 {[%clk 0:02:18.1]} 15...
Qg5 {[%clk 0:01:10.4]} 16. Rg1 {[%clk 0:02:02.4]} 16... Qe3 {[%clk 0:00:18.2]}
17. Kf1 {[%clk 0:01:51.2]} 17... f5 {[%clk 0:00:17.4]} 18. Nf2 {[%clk
0:01:37.4]} 18... Ng3+ {[%clk 0:00:15]} 19. Ke1 {[%clk 0:00:42.3]} 19... fxe4
{[%clk 0:00:12]} 20. hxg3 {[%clk 0:00:40.8]} 20... hxg3 {[%clk 0:00:11.3]} 21.
Ndxe4 {[%clk 0:00:39.4]} 21... gxf2+ {[%clk 0:00:09.6]} 22. Nxf2 {[%clk
0:00:39.3]} 22... e4 {[%clk 0:00:08.3]} 23. Qd2 {[%clk 0:00:30.8]} 23... Qb6
{[%clk 0:00:08]} 24. Qc2 {[%clk 0:00:17.7]} 24... exf3 {[%clk 0:00:06.4]} 25.
gxf3 {[%clk 0:00:17.1]} 25... Bf5 {[%clk 0:00:07]} 26. Bd3 {[%clk 0:00:15.6]}
26... Rae8+ {[%clk 0:00:06.8]} 27. Kf1 {[%clk 0:00:15.5]} 27... Re3 {[%clk
0:00:03.6]} 28. Bxf5 {[%clk 0:00:13.3]} 28... Rxf5 {[%clk 0:00:04.5]} 29. Rxg6
{[%clk 0:00:11.6]} 29... Qxg6 {[%clk 0:00:03.3]} 30. Re1 {[%clk 0:00:04]} 30...
Rexf3 {[%clk 0:00:03.1]} 31. Re2 {[%clk 0:00:02.3]} 31... Qh5 {[%clk 0:00:01.6]}
32. Ke1 {[%clk 0:00:01.8]} 1-0